[Event "85th Tata Steel Challengers 2023"]
[Site "Wijk aan Zee"]
[Date "2023.01.18"]
[Round "5.4"]
[White "Sindarov, Javokhir"]
[Black "Pechac, Jergus"]
[Result "1-0"]
[ECO "B01"]
[WhiteElo "2654"]
[BlackElo "2637"]
[Annotator "TA"]
[PlyCount "105"]
[EventDate "2023.01.10"]
[EventType "tourn"]
[EventCountry "NED"]
[SourceTitle "playchess.com"]
[Source "ChessBase"]
[SourceQuality "1"]
[TimeControl "40/6000+30:30/3000+30:900+30"]

{[%evp 9,105,29,46,51,43,52,63,22,46,25,45,54,42,44,28,14,15,11,14,20,29,19,48,43,54,46,60,47,76,70,75,67,66,67,141,81,163,94,98,101,101,102,100,95,95,93,104,112,113,117,112,96,122,81,153,153,139,150,155,155,155,150,150,150,180,180,192,192,192,192,192,192,192,192,252,252,270,95,697,700,686,463,722,714,705,704,695,675,695,677,623,456,29969,29970,29953,29954,5206,730]} 1. e4 {[%emt 0:00:01]} d5 {[%emt 0:02:18]} 2. exd5 {[%emt 0:00:09]} Qxd5 {[%emt 0:00:08]} 3. Nc3 {[%emt 0:00:04]} Qd6 {[%emt 0:00:08]} 4. d4 {[%emt 0:00:07]} Nf6 {[%emt 0:00:07]} 5. Nf3 {[%emt 0:00:31]} Nc6 {[%emt 0:12:21]} 6. Nb5 {[%emt 0:12:24] B01: Scandinavian Defence.} Qd8 {[%emt 0:00:00]} (6... Qe6+ $2 7. Ne5 Kd8 8. Bc4 $18) 7. c4 {[%emt 0:00:16]} Bg4 {[%emt 0:00:00]} 8. Be2 {[%emt 0:04:28] White is slightly better.} (8. Bf4 e5 9. Bxe5 (9. dxe5 Bb4+ 10. Nc3 Qxd1+ 11. Rxd1 Ne4 $15) 9... Bb4+ 10. Nc3 Qe7 $15) (8. d5 $5 a6 9. Nc3 $14) 8... a6 {[%emt 0:00:00]} 9. Nc3 {[%emt 0:00:18] [#]} Bxf3 $146 {[%emt 0:00:00]} ({Predecessor:} 9... e6 10. O-O Be7 11. h3 Bxf3 12. Bxf3 Nxd4 13. Bxb7 Ra7 14. Be3 Rxb7 15. Bxd4 O-O {½-½ Berezjuk,S (2440)-Vojtek,V (2374) SVK-chT 0607 2006 (11)}) 10. Bxf3 {[%emt 0:00:07]} Nxd4 {[%emt 0:00:00]} 11. Bxb7 {[%emt 0:08:04] This pair of bishops is nice.} Rb8 {[%emt 0:00:00]} 12. Be3 {[%emt 0:01:42][%cal Bc1e3,Be3d4,Bd4e5][%mdl 32]} Rxb7 {[%emt 0:00:00]} 13. Bxd4 {[%emt 0:00:08]} c6 $1 {[%emt 0:01:33]} 14. Ne2 {[%emt 0:10:39][%cal Bc3e2,Be2g3,Bg3e4,Be4c5][%mdl 32]} e6 {[%emt 0:09:15]} 15. O-O $36 {[%emt 0:00:37][%mdl 2048] Black is under pressure.} c5 {[%emt 0:03:32]} 16. Be5 {[%emt 0:06:17]} Qxd1 {[%emt 0:01:32]} 17. Raxd1 {[%emt 0:00:10]} Nd7 {[%emt 0:17:13]} 18. Bc3 {[%emt 0:00:09]} Nb8 {[%emt 0:01:09]} 19. Ng3 {[%emt 0:14:35]} Nc6 {[%emt 0:00:35]} 20. Ne4 {[%emt 0:00:39][%cal Oc3g7] Hoping for Bxg7!} Nd4 {[%emt 0:02:33]} 21. Rfe1 {[%emt 0:04:40] Dodges Ne2+} h5 {[%emt 0:32:06]} (21... Rd7 $14) 22. Rd2 {[%emt 0:05:27]} (22. b4 $142 $1 {[%cal Rb4c5]}) 22... Nf5 {[%emt 0:00:58]} (22... Be7 $16) 23. Red1 {[%emt 0:05:45]} (23. Nf6+ $18 Ke7 24. Ne4) 23... Be7 $16 {[%emt 0:01:10]} 24. Nxc5 {[%emt 0:01:07][%mdl 64] Double Attack. White is much more active.} Rc7 {[%emt 0:00:06]} 25. Nxa6 {[%emt 0:03:03]} Rxc4 {[%emt 0:00:08] [#]} 26. Bb4 $1 {[%emt 0:02:33][%cal Od2d7][%mdl 64] aiming for Rd7! Deflection} O-O {[%emt 0:11:19]} (26... Bxb4 $2 27. Rd8+ Ke7 28. Rxh8 $18) (26... Rxb4 $2 27. Nxb4 Bg5 28. Rc2 $18) 27. Bxe7 {[%emt 0:00:16]} Nxe7 {[%emt 0:00:06]} 28. b3 {[%emt 0:00:04] Inhibits Ra4.} Rc6 {[%emt 0:01:06]} 29. Nb4 {[%emt 0:00:05]} Rb6 {[%emt 0:00:08]} 30. a3 {[%emt 0:00:19]} Kh7 {[%emt 0:02:03]} 31. Rd7 {[%emt 0:12:09]} Nd5 {[%emt 0:07:49]} 32. Nxd5 {[%emt 0:01:09]} exd5 {[%emt 0:00:02]} 33. R7xd5 {[%emt 0:05:47]} Rxb3 {[%emt 0:00:07]} 34. Rxh5+ {[%emt 0:00:24][%mdl 4096] Endgame KRR-KRR} Kg6 {[%emt 0:00:03]} 35. Ra5 {[%emt 0:09:06]} Rd8 {[%emt 0:00:08][%cal Rd8d1]} 36. Ra1 {[%emt 0:00:04]} (36. Rxd8 $2 Rb1+) 36... Rd2 {[%emt 0:00:39][%cal Od2a2]} 37. h4 $1 {[%emt 0:00:13]} Rbb2 {[%emt 0:03:27]} 38. Rg5+ {[%emt 0:00:29]} Kf6 {[%emt 0:01:30]} 39. f3 {[%emt 0:02:01][%cal Bf2f3,Bf3f4][%mdl 32]} g6 {[%emt 0:02:39]} 40. Rg4 {[%emt 0:00:05]} Rd5 {[%emt 0:01:10]} 41. a4 {[%emt 0:50:07][%cal Ba3a4,Ba4a5][%mdl 32]} Kg7 {[%emt 0:50:32]} (41... Ra5 $142 42. Kh2 Rb8) 42. a5 $18 {[%emt 0:01:09] a6 would be deadly.} f5 {[%emt 0:00:00] [#]} 43. Rg5 {[%emt 0:00:00]} (43. Rg3 $1 $18) 43... Kh6 {[%emt 0:00:00][%mdl 8192] This costs Black the game.} (43... Kf6 $16) 44. f4 {[%emt 0:00:00]} (44. a6 Rbd2 $16) 44... Rbb5 {[%emt 0:00:00]} 45. h5 {[%emt 0:00:00]} (45. a6 Ra5 46. Re1 (46. Rxa5 Rxa5 47. g3 Rxa6 $14) 46... Rxa6 $14) 45... gxh5 {[%emt 0:00:00] [#]} (45... Rxa5 $142 46. Rxa5 (46. Rxg6+ Kxh5 47. Rg5+ Kh6 $18) 46... Rxa5 47. hxg6 (47. Rxg6+ Kxh5 48. Rg7 Kh4 $14) 47... Kg7) 46. Ra3 $1 {[%emt 0:00:00] White wants to mate with Rh3.} ({Weaker is} 46. a6 Ra5 47. Re1 (47. Rxa5 Rxa5 48. Kh2 Rxa6 $11) 47... Rxa6 $11) 46... Rd1+ {[%emt 0:00:00]} 47. Kh2 {[%emt 0:00:00] Intending Rh3 and mate.} Rbb1 {[%emt 0:00:00]} 48. Rxf5 {[%emt 0:00:00] Black must now prevent a6.} h4 {[%emt 0:00:00][%csl Gb1][%cal Rd1h1]} 49. Kh3 {[%emt 0:00:00]} Rh1+ {[%emt 0:00:00]} 50. Kg4 {[%emt 0:00:00]} Rbg1 {[%emt 0:00:00]} (50... Rh2 $18 51. a6 Rxg2+ 52. Kh3 (52. Kxh4 Rh1+ 53. Rh3 Ra1 $11) 52... Rg8) 51. Rh5+ {[%emt 0:00:00]} Kg6 {[%emt 0:00:00]} 52. Rg5+ {[%emt 0:00:00]} Kf6 {[%emt 0:00:00]} 53. Kh5 {[%emt 0:00:00] Weighted Error Value: White=0.10 (very precise) /Black=0.41} (53. a6 $142 Rxg2+ 54. Kh5) 1-0

[Event "85th Tata Steel Challengers 2023"]
[Site "Wijk aan Zee"]
[Date "2023.01.18"]
[Round "5.5"]
[White "Warmerdam, Max"]
[Black "Mishra, Abhimanyu"]
[Result "1/2-1/2"]
[ECO "D30"]
[WhiteElo "2616"]
[BlackElo "2559"]
[Annotator "TA"]
[PlyCount "69"]
[EventDate "2023.01.10"]
[EventType "tourn"]
[EventCountry "NED"]
[SourceTitle "playchess.com"]
[Source "ChessBase"]
[SourceQuality "1"]
[TimeControl "40/6000+30:30/3000+30:900+30"]

{[%evp 9,69,27,33,33,37,29,32,34,31,0,0,0,0,0,0,0,4,-4,-8,0,0,0,0,0,0,0,23,-8,-8,-27,-12,-30,-18,-14,-26,-21,-26,-20,-11,-31,0,0,0,0,0,0,10,0,33,0,0,0,0,0,0,0,0,0,0,0,2,0]} 1. d4 {[%emt 0:00:04]} d5 {[%emt 0:00:06]} 2. c4 {[%emt 0:00:05]} c6 {[%emt 0:00:15]} 3. Nf3 {[%emt 0:00:06]} Nf6 {[%emt 0:00:11]} 4. e3 {[%emt 0:00:06]} e6 {[%emt 0:00:21]} 5. b3 {[%emt 0:00:07]} c5 {[%emt 0:00:25]} 6. Bb2 {[%emt 0:00:08] D30: Queen's Gambit Declined: Systems without Nc3.} cxd4 {[%emt 0:00:45]} 7. Nxd4 {[%emt 0:00:05]} e5 {[%emt 0:01:13]} 8. Nf3 {[%emt 0:00:07] White is slightly better.} Nc6 {[%emt 0:00:18]} 9. cxd5 {[%emt 0:00:07]} Nxd5 {[%emt 0:00:23]} 10. a3 {[%emt 0:00:08]} f6 {[%emt 0:07:40] [#]} 11. Nbd2 $146 {[%emt 0:00:10]} ({Predecessor:} 11. Bd3 Be6 12. O-O Qd7 13. Qe2 Qf7 14. Nbd2 Be7 15. Rac1 O-O 16. b4 a5 17. b5 {½-½ Andersen,R (2237)-Slawinski,T (2369) W-ch38 prel12 email 2014}) 11... Be6 {[%emt 0:00:44]} 12. Qb1 {[%emt 0:00:32]} Qd7 {[%emt 0:00:45]} 13. b4 {[%emt 0:00:21]} Rd8 {[%emt 0:01:16]} 14. Be2 {[%emt 0:07:09]} Be7 {[%emt 0:06:56]} 15. O-O {[%emt 0:00:09]} O-O {[%emt 0:04:53]} 16. Rd1 {[%emt 0:03:24]} Qe8 {[%emt 0:05:38]} 17. Bd3 {[%emt 0:17:29]} Kh8 {[%emt 0:07:52]} 18. Nh4 {[%emt 0:23:48]} g6 {[%emt 0:10:27]} 19. Nhf3 {[%emt 0:03:06]} (19. Bxg6 {is interesting.} hxg6 20. Nxg6+ Kg7 21. Nxf8 Bxf8 22. Nf1) 19... Nb6 {[%emt 0:12:57]} 20. b5 {[%emt 0:01:28]} Na5 {[%emt 0:01:57]} 21. Bc3 {[%emt 0:00:31]} Nac4 {[%emt 0:01:58]} 22. Nxc4 {[%emt 0:00:39]} Nxc4 {[%emt 0:01:30]} 23. Bb4 {[%emt 0:11:12]} Qf7 {[%emt 0:05:28][%cal Od8d3]} 24. Be2 {[%emt 0:03:55]} Rc8 {[%emt 0:09:24]} 25. Nd2 {[%emt 0:14:01]} Nb6 {[%emt 0:09:18]} 26. Ne4 {[%emt 0:01:14]} Nd5 {[%emt 0:00:46]} 27. Qb2 {[%emt 0:03:48]} Rfd8 {[%emt 0:04:45]} 28. h3 {[%emt 0:02:02]} b6 {[%emt 0:03:22]} 29. Bg4 {[%emt 0:02:59]} Nxb4 $1 {[%emt 0:02:19] The position is equal.} 30. axb4 {[%emt 0:05:12]} Bxg4 {[%emt 0:02:20]} 31. hxg4 {[%emt 0:01:44]} Rxd1+ {[%emt 0:03:11]} 32. Rxd1 {[%emt 0:00:02][%cal Og4g5]} Qe6 {[%emt 0:00:18]} 33. f3 {[%emt 0:03:01]} Rc7 {[%emt 0:02:09]} 34. Nc3 {[%emt 0:04:51]} Rd7 {[%emt 0:01:50] Dodges Nd5} 35. Rxd7 {[%emt 0:00:11] Weighted Error Value: White=0.07 (flawless) /Black=0.04 (flawless)} 1/2-1/2

[Event "85th Tata Steel Challengers 2023"]
[Site "Wijk aan Zee"]
[Date "2023.01.18"]
[Round "5.6"]
[White "Beerdsen, Thomas"]
[Black "Roebers, Eline"]
[Result "1-0"]
[ECO "C15"]
[WhiteElo "2515"]
[BlackElo "2361"]
[Annotator "TA"]
[PlyCount "65"]
[EventDate "2023.01.10"]
[EventType "tourn"]
[EventCountry "NED"]
[SourceTitle "playchess.com"]
[Source "ChessBase"]
[SourceQuality "1"]
[TimeControl "40/6000+30:30/3000+30:900+30"]

{[%evp 15,65,0,0,0,0,-10,-20,-135,-127,-187,-196,-185,-187,-204,-176,-131,-143,-309,-283,-450,-441,-445,-433,-451,-431,-421,-435,-390,-367,-349,-321,-302,-316,-306,-292,-281,-313,-295,-188,-242,-232,-239,668,146,655,649,1424,597,29987,29988,29989,29990]} 1. e4 {[%emt 0:00:03]} e6 {[%emt 0:00:07]} 2. d4 {[%emt 0:00:05]} d5 {[%emt 0:00:04]} 3. Nc3 {[%emt 0:00:06]} Bb4 {[%emt 0:00:04]} 4. Bd2 {[%emt 0:02:19]} dxe4 {[%emt 0:02:28]} 5. Qg4 {[%emt 0:03:38]} Nf6 {[%emt 0:02:14]} 6. Qxg7 {[%emt 0:00:42]} Rg8 {[%emt 0:00:05][%cal Bh8g8,Bg8g4,Bg4c4][%mdl 32]} 7. Qh6 {[%emt 0:00:05]} Qxd4 {[%emt 0:10:38]} 8. O-O-O {[%emt 0:01:44]} Bf8 {[%emt 0:02:57]} 9. Qh4 {[%emt 0:18:31] C15: French: 3 Nc3 Bb4: Unusual White 4th moves.} Rg4 {[%emt 0:04:12] Wards off Bg5} 10. Qh3 {[%emt 0:00:10]} Qxf2 {[%emt 0:00:47] [#]} 11. g3 $146 {[%emt 0:24:21] Inhibits Rh4.} (11. Be3 $11 Qh4 12. g3 Qxh3 13. Nxh3) ({Predecessor:} 11. Nb5 Na6 12. Be2 Rg6 13. g4 Qb6 14. Nc3 h6 15. Na4 Qc6 16. Nc3 Nb4 17. a3 {1-0 Bernadskiy,V (2589)-Short,N (2633) Cattolica Vergani Cup 2022 (9)}) 11... Qc5 $17 {[%emt 0:25:24]} 12. Bg2 {[%emt 0:03:32]} (12. Kb1 $17 {is a better defense.}) 12... e3 $19 {[%emt 0:04:27]} 13. Be1 {[%emt 0:00:20]} Nc6 {[%emt 0:00:06][%cal Bb8c6,Bc6d4,Bd4e2][%mdl 32] aiming for ...e5.} 14. Nge2 {[%emt 0:01:15]} Rc4 {[%emt 0:14:27] ...e5 would be deadly.} 15. g4 {[%emt 0:09:52]} e5 {[%emt 0:05:59]} ({Worse is} 15... Nxg4 16. Qxh7 Nf2 17. Rf1 $17) (15... Rxg4 $2 16. Rf1 $18) 16. Qf3 {[%emt 0:01:13]} (16. Nd5 $17 Rxc2+ 17. Kb1) 16... Be7 $1 {[%emt 0:05:17]} ({Weaker is} 16... Bxg4 17. Qxf6 Bxe2 18. Rd5 $14) (16... Rxg4 17. Bh4 Rxh4 18. Qxf6 $16) 17. g5 {[%emt 0:03:58]} (17. h3 {keeps fighting.} Nd4 18. Qf1) 17... Bg4 {[%emt 0:03:19]} 18. Qf1 {[%emt 0:02:12] [#]} Nd4 $1 {[%emt 0:03:30]} 19. Kb1 {[%emt 0:10:14]} (19. Rxd4 exd4) 19... Nxe2 {[%emt 0:19:38]} 20. Nxe2 {[%emt 0:00:28]} Rxc2 {[%emt 0:02:10]} 21. Bf3 {[%emt 0:00:30]} Bf5 {[%emt 0:00:42][%csl Gc5][%cal Rc2c1]} 22. Bc6+ {[%emt 0:01:11]} bxc6 {[%emt 0:01:59][%csl Gc5][%cal Rc2c1]} 23. Qxf5 {[%emt 0:00:06]} Rxe2 {[%emt 0:00:10]} 24. gxf6 {[%emt 0:00:14] [#]} Bxf6 {[%emt 0:00:45]} 25. Rg1 {[%emt 0:01:31] [#]} (25. a3 a5) 25... Kf8 {[%emt 0:00:01] Inhibits Rg8+.} 26. Bc3 {[%emt 0:00:31] [#]} (26. Qxf6 $2 {leads to mate.} Qc2+ 27. Ka1 Qxd1#) 26... Rb8 $1 {[%emt 0:00:07]} 27. Ka1 {[%emt 0:00:50]} Rf2 {[%emt 0:01:10]} 28. Qxh7 {[%emt 0:00:55]} e2 $4 {[%emt 0:00:43][%mdl 8192]} (28... Ke7 $19 29. Qh3 Rd2) 29. Qg8+ $40 {[%emt 0:00:28][%mdl 192] Skewer. White goes for the king.} Ke7 {[%emt 0:00:07]} 30. Qxb8 {[%emt 0:00:05] Threatening mate with Qd8+.} exd1=Q+ {[%emt 0:01:02]} 31. Rxd1 {[%emt 0:00:05] Qd8+ would kill now.} Qd6 {[%emt 0:00:45][%cal Rd6d1] Inhibits Qd8+.} 32. Bb4 {[%emt 0:00:09][%mdl 64] Pin} c5 {[%emt 0:00:04]} 33. Bxc5 {[%emt 0:00:04][%mdl 64] Pin, Double Attack. A cool game by Beerdsen.   Weighted Error Value: White=0.27 (precise) /Black=0.37} 1-0

[Event "85th Tata Steel Challengers 2023"]
[Site "Wijk aan Zee"]
[Date "2023.01.18"]
[Round "5.7"]
[White "Vaishali, Rameshbabu"]
[Black "Adhiban, B.."]
[Result "1/2-1/2"]
[ECO "B36"]
[WhiteElo "2425"]
[BlackElo "2610"]
[Annotator "TA"]
[PlyCount "73"]
[EventDate "2023.01.10"]
[EventType "tourn"]
[EventCountry "NED"]
[SourceTitle "playchess.com"]
[Source "ChessBase"]
[SourceQuality "1"]
[TimeControl "40/6000+30:30/3000+30:900+30"]

{[%evp 20,73,45,42,50,40,64,55,39,49,27,0,43,25,35,15,14,31,22,10,39,39,40,31,39,27,49,0,62,62,49,53,54,20,16,17,27,19,20,8,18,20,20,19,20,12,43,0,2,1,32,36,31,0,0,-657]} 1. e4 {[%emt 0:00:17]} c5 {[%emt 0:00:06]} 2. Nf3 {[%emt 0:00:04]} Nc6 {[%emt 0:00:06]} 3. d4 {[%emt 0:00:04]} cxd4 {[%emt 0:00:05]} 4. Nxd4 {[%emt 0:00:03]} g6 {[%emt 0:00:04]} 5. c4 {[%emt 0:00:27]} Nf6 {[%emt 0:00:16]} 6. Nc3 {[%emt 0:00:07]} d6 {[%emt 0:00:11]} 7. f3 {[%emt 0:01:06]} Nxd4 {[%emt 0:00:24]} 8. Qxd4 {[%emt 0:00:03]} Bg7 {[%emt 0:00:12]} 9. Be3 {[%emt 0:00:09]} O-O {[%emt 0:00:23]} 10. Qd2 {[%emt 0:00:19]} Be6 {[%emt 0:00:23]} 11. Rc1 {[%emt 0:01:23][%cal Ba1c1,Bc1c2,Bc2d2,Bd2d5,Bd5a5][%mdl 32]} a6 {[%emt 0:00:42] B36: Sicilian: Maroczy Bind: Gurgenidze System.} 12. b3 $1 {[%emt 0:02:53] 12.b3 is better than 12.Be2.} Qc7 {[%emt 0:00:09]} 13. Be2 {[%emt 0:07:44]} Rfc8 {[%emt 0:00:51][%cal Ob7b5] White is slightly better.} 14. O-O {[%emt 0:04:04] [#]} Qa5 $146 {[%emt 0:00:10][%cal Ob7b5]} ({Predecessor:} 14... Qd7 15. Na4 Qc7 16. Nb6 Rab8 17. Nxc8 Rxc8 18. Qe1 Bd7 19. b4 Qb8 20. Qd2 b5 21. c5 {1-0 Balog,M-Weszelovszki,G Gyongyos Matra op 25th 2002 (4.30)}) 15. Rfd1 {[%emt 0:21:15]} Nd7 {[%emt 0:02:29]} 16. Rc2 {[%emt 0:14:37]} b5 {[%emt 0:10:21][%cal Rb5c4]} 17. Nd5 {[%emt 0:01:27]} (17. Rdc1 $5 {[%cal Rc4b5]}) 17... Qxd2 {[%emt 0:00:21][%mdl 64] [#] Remove Defender} 18. Rcxd2 {[%emt 0:00:39]} Bxd5 {[%emt 0:01:56]} 19. Rxd5 {[%emt 0:01:44]} b4 {[%emt 0:06:50]} 20. f4 {[%emt 0:06:36][%cal Oe4e5]} Nf6 {[%emt 0:08:58][%csl LRd5,LRe4]} 21. Ra5 {[%emt 0:01:33] [#] Black must now prevent Bf3.} Nxe4 {[%emt 0:02:17]} 22. Bf3 {[%emt 0:00:10]} f5 {[%emt 0:02:29]} 23. Bd4 {[%emt 0:07:38]} (23. g4 $14) 23... Bh6 {[%emt 0:27:28]} (23... Bxd4+ $11 24. Rxd4 Rc5 25. Rxc5 (25. Bxe4 fxe4 26. Rxc5 dxc5 $11) 25... dxc5) 24. g3 $14 {[%emt 0:03:44] White is more active.} e6 {[%emt 0:14:13][%cal Od6d5]} 25. Re1 {[%emt 0:01:58] Repels d5} Kf7 {[%emt 0:00:06]} 26. Bxe4 {[%emt 0:06:14]} fxe4 {[%emt 0:00:09]} 27. Rxe4 {[%emt 0:00:14]} Rc6 {[%emt 0:00:09]} 28. Kf2 {[%emt 0:03:53]} Bf8 {[%emt 0:00:36]} 29. Re2 {[%emt 0:04:23]} Rd8 {[%emt 0:00:39]} 30. Rd2 {[%emt 0:01:49]} Be7 {[%emt 0:01:12]} 31. Be3 {[%emt 0:05:03]} Rb8 {[%emt 0:04:28]} 32. Kf3 {[%emt 0:01:37]} h5 {[%emt 0:04:00]} 33. Ke4 {[%emt 0:00:53]} Bd8 {[%emt 0:01:56]} 34. Ra4 {[%emt 0:00:03]} Bf6 {[%emt 0:00:13][%cal Od6d5]} 35. Kf3 {[%emt 0:01:48]} Rb7 {[%emt 0:04:12]} 36. Ra5 {[%emt 0:01:39]} Bd8 {[%emt 0:02:31]} 37. Ke4 $2 {[%emt 0:00:46][%mdl 40960] Weighted Error Value: White=0.11 (very precise) /Black=0.10 (very precise) . An unexpected result.} 1/2-1/2

[Event "85th Tata Steel Challengers 2023"]
[Site "Wijk aan Zee"]
[Date "2023.01.20"]
[Round "6.1"]
[White "Ivic, Velimir"]
[Black "Adhiban, B.."]
[Result "1/2-1/2"]
[ECO "E94"]
[WhiteElo "2585"]
[BlackElo "2610"]
[Annotator "TA"]
[PlyCount "128"]
[EventDate "2023.01.10"]
[EventType "tourn"]
[EventCountry "NED"]
[SourceTitle "playchess.com"]
[Source "ChessBase"]
[SourceQuality "1"]
[TimeControl "40/6000+30:30/3000+30:900+30"]

{[%evp 22,128,72,40,46,17,45,45,52,37,79,92,137,94,194,173,178,162,235,239,252,239,227,212,249,142,206,98,218,225,287,273,276,276,387,141,165,128,122,117,112,137,123,121,210,104,152,123,116,104,108,110,110,104,113,108,112,110,93,108,128,56,56,54,55,47,47,46,47,46,45,45,47,47,47,47,47,47,47,47,45,45,51,35,34,22,23,24,22,25,25,21,21,22,25,25,26,0,8,0,21,8,17,14,14,0,13,0,23]} 1. d4 {[%emt 0:00:14]} Nf6 {[%emt 0:00:07]} 2. c4 {[%emt 0:00:19]} g6 {[%emt 0:00:05]} 3. Nc3 {[%emt 0:00:13]} Bg7 {[%emt 0:00:05]} 4. e4 {[%emt 0:00:17]} d6 {[%emt 0:00:05]} 5. Nf3 {[%emt 0:00:25]} O-O {[%emt 0:00:38]} 6. Be2 {[%emt 0:00:15]} e5 {[%emt 0:00:07]} 7. O-O {[%emt 0:00:20]} exd4 {[%emt 0:00:15]} 8. Nxd4 {[%emt 0:00:08]} Re8 {[%emt 0:00:02]} 9. f3 {[%emt 0:00:17]} c6 {[%emt 0:00:02]} 10. Bg5 {[%emt 0:02:18]} h6 {[%emt 0:00:58]} 11. Bh4 {[%emt 0:00:54]} Nbd7 {[%emt 0:00:10]} 12. Kh1 {[%emt 0:05:12]} Ne5 {[%emt 0:00:07] E94: King's Indian: Classical: 6 Be2 e5 7 0-0: Various Black 7th moves.} 13. Qc2 {[%emt 0:16:09]} g5 {[%emt 0:00:24]} 14. Bf2 {[%emt 0:00:40]} Nh5 {[%emt 0:00:06] White is slightly better.} 15. Rad1 {[%emt 0:08:08]} Qf6 {[%emt 0:04:42] [#]} 16. g3 $146 {[%emt 0:16:23]} ({Predecessor:} 16. Be3 Nf4 17. Rf2 Nxe2 18. Ncxe2 Be6 19. Nxe6 Qxe6 20. b3 g4 21. Nd4 Qg6 22. Nf5 {1-0 Tukmakov,V (2574)-Svendsen,T (2104) Basel Hilton op 02nd 2000 (1)}) 16... Bh3 {[%emt 0:11:26] Prevents Nf5.} 17. Rfe1 {[%emt 0:02:49]} Ng4 {[%emt 0:05:54]} (17... a6 $16 {is a better defense.}) 18. Bg1 $1 $18 {[%emt 0:04:42]} Ne5 {[%emt 0:00:56]} 19. Nf5 $1 {[%emt 0:05:04][%mdl 64] Discovered Attack} (19. f4 $6 gxf4 20. Bxh5 fxg3 21. hxg3 Qg5 $16) 19... Bf8 {[%emt 0:02:59] [#]} (19... Qg6 {was necessary.} 20. Nxd6 (20. Rxd6 Bf6 $18) 20... Re6) 20. f4 $1 {[%emt 0:04:40][%mdl 576] Discovered Attack} Ng4 {[%emt 0:09:38]} 21. Bf1 $1 {[%emt 0:01:03]} (21. Bd4 Qg6 $16) 21... Bxf1 {[%emt 0:00:15]} 22. Rxf1 {[%emt 0:00:06] And now h3 would win.} Qe6 {[%emt 0:03:26]} 23. b3 {[%emt 0:07:07]} ({White should try} 23. Qe2 $18 Qxf5 24. exf5 Rxe2 25. Nxe2) 23... a6 {[%emt 0:18:42]} (23... Ngf6 $16) 24. Qg2 {[%emt 0:10:51]} (24. Qe2 $1 $18 Ngf6 25. fxg5 hxg5 26. Be3 (26. Bd4 Rac8 $18)) 24... b5 {[%emt 0:02:55] [#]} (24... Ngf6 $16 {was worth a try.}) 25. Nd4 $1 {[%emt 0:02:35][%csl LRc6,LRe6]} Qg6 {[%emt 0:01:08]} 26. Nxc6 {[%emt 0:09:06]} gxf4 {[%emt 0:02:26]} 27. gxf4 {[%emt 0:00:27]} bxc4 {[%emt 0:00:13]} (27... Ngf6 $142 28. Qf3 (28. cxb5 Qxg2+ 29. Kxg2 axb5 $14) 28... Qg4 29. Qxg4+ (29. cxb5 Qxf3+ 30. Rxf3 axb5 $16) 29... Nxg4) 28. b4 $2 {[%emt 0:03:30]} ({Less strong is} 28. bxc4 Rac8 $18) (28. Bd4 $18 {and White stays clearly on top.} Ne3 29. Bxe3 Qxg2+ 30. Kxg2) 28... Rac8 {[%emt 0:03:02]} 29. Nd4 {[%emt 0:00:18]} Ngf6 {[%emt 0:00:50][%cal Rf6e4]} 30. Qf3 {[%emt 0:01:39] Rf2 is the strong threat.} Qg4 {[%emt 0:01:58]} (30... Nxe4 $2 31. f5 Nhg3+ 32. hxg3 Nxg3+ 33. Kg2 Nxf5+ 34. Kh2 $18) 31. Qxg4+ {[%emt 0:01:18]} Nxg4 {[%emt 0:00:04]} 32. Nf5 {[%emt 0:00:50][%mdl 64] Discovered Attack} Re6 {[%emt 0:06:49] [#]} (32... Ngf6 $16 {keeps fighting.}) 33. Bd4 {[%emt 0:01:58]} (33. Kg2 $1 $18) 33... Kh7 {[%emt 0:06:50] Black is weak on the dark squares} ({Black should play} 33... Ngf6) 34. a4 {[%emt 0:01:35] aiming for b5.} Ngf6 {[%emt 0:02:34]} 35. e5 {[%emt 0:00:54] White is much more active.} Ng4 {[%emt 0:01:52][%cal Rd6e5]} 36. exd6 {[%emt 0:01:23]} Bxd6 {[%emt 0:00:08]} 37. Rg1 {[%emt 0:03:48]} Rg8 {[%emt 0:11:22]} 38. h3 {[%emt 0:00:29][%cal Bh2h3,Bh3g4][%mdl 32] Dancing on a razor blade.} Nxf4 {[%emt 0:00:30]} 39. Rxg4 {[%emt 0:00:36]} (39. hxg4 {is more complex.} Bxb4 40. Be3 Rxe3 41. Nxe3 Bxc3 42. Rd7) 39... Rxg4 {[%emt 0:00:09]} 40. hxg4 {[%emt 0:00:02] b5 would be deadly.} Bxb4 {[%emt 0:00:08]} 41. Rf1 {[%emt 0:12:18]} (41. Na2 $16 Ba5 42. Be3) 41... Bxc3 $14 {[%emt 0:06:35]} 42. Bxc3 {[%emt 0:04:10]} ({Don't do} 42. Rxf4 Bd2 43. Rf3 Re4 $16) 42... Nd5 {[%emt 0:00:14]} 43. Rf3 {[%emt 0:03:26]} Re4 {[%emt 0:04:16]} 44. Nd6 {[%emt 0:10:32]} Rxg4 {[%emt 0:01:42]} 45. Rxf7+ {[%emt 0:00:11]} Kg6 {[%emt 0:03:37]} 46. Rf3 {[%emt 0:00:12]} h5 {[%emt 0:12:03]} 47. a5 {[%emt 0:07:26]} Nxc3 {[%emt 0:12:49]} 48. Rxc3 {[%emt 0:00:02][%mdl 4096] Endgame KRN-KR} Rg5 {[%emt 0:01:57]} 49. Nxc4 {[%emt 0:00:10]} Rc5 {[%emt 0:00:25]} 50. Kg2 {[%emt 0:00:13]} Kf6 {[%emt 0:00:27]} 51. Kf3 {[%emt 0:03:54]} Ke6 {[%emt 0:08:03]} 52. Re3+ {[%emt 0:01:43]} Kd5 {[%emt 0:00:58]} 53. Nb6+ {[%emt 0:00:03]} Kd4 {[%emt 0:08:11]} 54. Re4+ {[%emt 0:01:05]} Kd3 {[%emt 0:00:11]} 55. Ra4 {[%emt 0:00:12]} Rf5+ {[%emt 0:00:06]} 56. Kg3 {[%emt 0:00:04]} Kc3 {[%emt 0:00:22]} 57. Nd7 {[%emt 0:02:32]} Kb3 {[%emt 0:01:18]} 58. Ra1 {[%emt 0:00:07]} Kb2 {[%emt 0:00:40]} 59. Ra4 {[%emt 0:00:08]} (59. Rh1 $5 {[%cal Rd7b6]}) 59... Kb3 {[%emt 0:00:05] The position is equal.} 60. Nb6 {[%emt 0:00:03]} Kc3 {[%emt 0:00:33]} 61. Kg2 {[%emt 0:01:20]} Kb3 {[%emt 0:01:57]} 62. Ra1 {[%emt 0:00:19]} Kb4 {[%emt 0:02:03]} 63. Ra4+ {[%emt 0:00:40]} Kb3 {[%emt 0:00:09]} 64. Kg3 {[%emt 0:03:00]} Kc3 {[%emt 0:00:07] Black escapes into a draw.   Weighted Error Value: White=0.21 (precise) /Black=0.21 (precise)} 1/2-1/2